[Event "FIDE WSCC 65 2022"]
[Site "Assisi"]
[Date "2022.11.20"]
[Round "6.6"]
[White "Kristiansen, Jens"]
[Black "De Jong, Tom"]
[Result "1-0"]
[ECO "C00"]
[WhiteElo "2353"]
[BlackElo "2216"]
[Annotator "TA"]
[PlyCount "67"]
[EventDate "2022.11.14"]
[EventType "swiss"]
[EventCountry "ITA"]
[SourceTitle "playchess.com"]
[Source "ChessBase"]
[SourceQuality "1"]
[TimeControl "40/5400+30:1800+30"]

{[%evp 22,67,-30,-36,-34,-50,-50,-44,-44,-59,-56,-53,-67,-63,-18,-29,8,-20,0,-72,-75,-67,-22,-31,0,-60,233,14,205,183,197,133,126,-318,-302,-323,263,0,541,560,1046,1051,1065,1039,993,950,970,954]} 1. Nf3 {[%emt 0:00:34]} d5 {[%emt 0:00:24]} 2. g3 {[%emt 0:00:13]} c5 {[%emt 0:00:06]} 3. Bg2 {[%emt 0:00:08]} Nc6 {[%emt 0:00:53]} 4. O-O {[%emt 0:00:16]} Nf6 {[%emt 0:00:10]} 5. d3 {[%emt 0:00:08]} e6 {[%emt 0:06:18]} 6. Nbd2 {[%emt 0:00:11]} Be7 {[%emt 0:00:20]} 7. e4 {[%emt 0:00:10]} O-O {[%emt 0:02:11]} 8. Re1 {[%emt 0:00:10]} b5 {[%emt 0:00:20]} 9. e5 {[%emt 0:01:03]} Nd7 {[%emt 0:00:06]} 10. Nf1 {[%emt 0:00:20]} Bb7 {[%emt 0:01:26]} 11. h4 {[%emt 0:01:11]} Qc7 {[%emt 0:01:40]} 12. Bf4 {[%emt 0:00:20]} Rfc8 {[%emt 0:00:17] C00: French: Unusual White 2nd moves.} 13. h5 {[%emt 0:06:56]} h6 $1 {[%emt 0:00:07]} 14. Ne3 {[%emt 0:02:09][%cal Oe3d5]} Qd8 {[%emt 0:09:31] Black is slightly better.} ({Much less strong is} 14... Ncxe5 15. Nxe5 Nxe5 16. Ng4 $16) 15. c4 {[%emt 0:10:30]} bxc4 {[%emt 0:05:35]} 16. dxc4 {[%emt 0:00:09]} d4 {[%emt 0:02:24]} 17. Ng4 {[%emt 0:00:44] [#]} Nb6 $146 {[%emt 0:15:04]} ({Predecessor:} 17... Bf8 18. Nd2 Rcb8 19. Ne4 Ne7 20. b4 cxb4 21. Qxd4 Nf5 22. Qxd7 Qxd7 23. Nxh6+ gxh6 {1-0 (45) Gukesh,D (2547)-Rafiee,M (2335) Sitges 2019}) 18. b3 {[%emt 0:01:21]} a5 {[%emt 0:10:31]} 19. Nd2 {[%emt 0:05:56]} (19. Qd2 {with more complications.} Nb4 20. Nxh6+ gxh6 21. Bxh6 Bf8 22. a3) 19... a4 {[%emt 0:01:05]} 20. Ne4 {[%emt 0:01:41]} (20. Rb1 $11 {keeps the balance.}) 20... axb3 $17 {[%emt 0:00:49]} 21. axb3 {[%emt 0:00:10][%cal Oe4f6]} Rxa1 {[%emt 0:00:40]} (21... Nd7 {seems wilder.} 22. Rxa8 Rxa8 23. Nd6 Bxd6 24. exd6 Kh8) 22. Qxa1 {[%emt 0:00:08]} Ra8 {[%emt 0:01:02]} 23. Qd1 {[%emt 0:07:47]} (23. Qc1 $1 $11 Nd7 24. Nd6 Bxd6 25. exd6) 23... Nc8 $2 {[%emt 0:04:17][%mdl 8192]} (23... Nd7 $1 $15 {stays ahead.}) 24. Ngf6+ $2 gxf6 $2 {[%emt 0:15:41]} (24... Kh8 $1 $11 {and Black is okay.}) 25. Qg4+ $18 {[%emt 0:07:19]} Kh8 {[%emt 0:03:05]} (25... Kh7 $2 26. exf6 Bf8 27. Nxc5 $1 {[%mdl 512]} Qxf6 28. Nxb7 $18) 26. exf6 {[%emt 0:00:58]} (26. Bxh6 $18 {[%csl Gh6][%cal Rg4g7]} Bf8 27. Nxf6 $1 Bxh6 28. Qe4 Qxf6 29. exf6) 26... Bxf6 $16 {[%emt 0:05:06] Strongly threatening ...Qe7.} 27. Bxh6 $2 {[%emt 0:04:20][%mdl 8192] White has more active pieces.} (27. Nxc5 $16 Qe7 28. Nxb7 Qxb7 29. Bxh6) 27... Ne5 $19 {[%emt 0:02:00]} 28. Qd1 {[%emt 0:01:43] Hoping for Nxf6.} Bg7 {[%emt 0:07:59][%mdl 8192] [#]} (28... Bxe4 $19 {avoids the disaster.} 29. Rxe4 Ra2) 29. Bf4 $2 {[%emt 0:00:30]} ({Only move:} 29. Bg5 $1 $18 {[%cal Rg5d8]} f6 30. h6 Bxe4 31. hxg7+ (31. Bxe4 Nd6 $16) 31... Kxg7 32. Rxe4 (32. Bxe4 Nd6 $16) 32... fxg5 33. Rxe5) 29... Nd7 $2 {[%emt 0:02:10][%mdl 8192]} (29... Bxe4 $1 $11 30. h6 Bf6 31. Bxe4 Ra7) 30. h6 $18 {[%emt 0:04:19] White is clearly winning.} Bf8 {[%emt 0:03:02]} 31. Ng5 {[%emt 0:00:29][%mdl 64] Discovered Attack} Qf6 {[%emt 0:00:33]} 32. Bxb7 {[%emt 0:00:52] And now Qh5 would win.} Bxh6 {[%emt 0:00:55]} 33. Bxa8 {[%emt 0:00:31] This pair of bishops is nice.} Bxg5 {[%emt 0:00:11]} 34. Qh5+ {[%emt 0:00:09] Weighted Error Value: White=0.68/Black=1.12} 1-0

[Event "FIDE WSCC 65 2022"]
[Site "Assisi"]
[Date "2022.11.20"]
[Round "6.7"]
[White "Lederman, Leon"]
[Black "Legky, Nikolay A"]
[Result "1/2-1/2"]
[ECO "C60"]
[WhiteElo "2215"]
[BlackElo "2350"]
[Annotator "TA"]
[PlyCount "50"]
[EventDate "2022.11.14"]
[EventType "swiss"]
[EventCountry "ITA"]
[SourceTitle "playchess.com"]
[Source "ChessBase"]
[SourceQuality "1"]
[TimeControl "40/5400+30:1800+30"]

{[%evp 11,50,22,29,30,40,26,30,-47,-54,-60,23,8,22,16,17,11,25,0,0,-8,-15,-35,0,-21,-21,-10,-8,-16,-8,-8,-10,-8,-11,-12,-16,-10,0,0,0,-9,83]} 1. e4 {[%emt 0:00:03]} e5 {[%emt 0:00:05]} 2. Nf3 {[%emt 0:00:04]} Nc6 {[%emt 0:00:06]} 3. Bb5 {[%emt 0:00:04]} Nge7 {[%emt 0:00:06]} 4. O-O {[%emt 0:00:07]} Ng6 {[%emt 0:00:06]} 5. d4 {[%emt 0:00:22]} exd4 {[%emt 0:00:09]} 6. Nxd4 {[%emt 0:00:06]} Bc5 {[%emt 0:00:05]} 7. Be3 {[%emt 0:01:28] C60: Ruy Lopez: Unusual Black 3rd moves and 3...g6.} Bxd4 {[%emt 0:07:19]} 8. Bxd4 {[%emt 0:00:06]} Qg5 {[%emt 0:00:03]} 9. Be2 {[%emt 0:06:56]} ({Stronger than} 9. Bxg7 Nh4 $1 10. g3 Qxg7 $19) (9. Bxc6 $11 bxc6 10. g3) 9... Nxd4 {[%emt 0:00:52]} (9... Nf4 $5 10. Bf3 $8 Nxd4 11. Qxd4 Qxg2+ $1 12. Bxg2 Ne2+ 13. Kh1 Nxd4 $11) 10. Qxd4 {[%emt 0:00:14] [#]} d6 $146 {[%emt 0:00:15]} (10... Nf4 $15 11. Bf3 {[#]} Qxg2+ $1 12. Bxg2 Ne2+ 13. Kh1 Nxd4) ({Predecessor:} 10... Nf4 11. Bf3 Qxg2+ 12. Bxg2 Ne2+ 13. Kh1 Nxd4 14. Na3 a6 15. f4 d6 16. Rad1 Nc6 {½-½ (98) Hebden,M (2448)-Connell,B (2230) Chess.com INT 2022}) 11. g3 $11 {[%emt 0:07:02]} Qe5 {[%emt 0:06:45]} (11... Nf4 {looks sharper.} 12. Nc3 O-O 13. Bf3 Bh3) 12. Qxe5+ {[%emt 0:02:27]} (12. c3 {is more complex.} Bh3 13. Re1 h5 14. f4) 12... dxe5 {[%emt 0:00:06]} 13. Nc3 {[%emt 0:00:05][%cal Bb1c3,Bc3d1,Bd1e3,Be3c4,Bc4b6][%mdl 32] next Nb5 is good for White.} c6 {[%emt 0:00:07] Against Nb5} 14. a4 {[%emt 0:04:10]} a5 {[%emt 0:01:03]} 15. Rfb1 {[%emt 0:00:26]} Nf8 {[%emt 0:06:44][%cal Bg6f8,Bf8e6,Be6d4][%mdl 32]} 16. b4 {[%emt 0:00:38]} Ne6 {[%emt 0:01:54]} 17. Nd1 {[%emt 0:11:04] The position is equal.} Nd4 {[%emt 0:35:46]} 18. Bd3 {[%emt 0:00:06]} axb4 {[%emt 0:00:03]} 19. Rxb4 {[%emt 0:00:11]} Ke7 {[%emt 0:00:03]} 20. Ne3 {[%emt 0:09:57]} Rd8 {[%emt 0:00:44][%cal Ob7b5]} 21. Nc4 {[%emt 0:05:06]} f6 {[%emt 0:00:04]} 22. Nb6 {[%emt 0:00:06]} Ra7 {[%emt 0:00:07]} 23. f4 {[%emt 0:05:58]} Be6 {[%emt 0:02:10]} 24. f5 {[%emt 0:03:12]} Bf7 {[%emt 0:00:11]} 25. Kf2 {[%emt 0:00:07]} Rh8 {[%emt 0:38:07] Weighted Error Value: White=0.11 (very precise) /Black=0.10 (very precise)} (25... Nxc2 $2 26. Bxc2 Ra5 27. Bd1 $18) (25... Kf8 $11 {remains equal.}) 1/2-1/2

[Event "FIDE WSCC 65 2022"]
[Site "Assisi"]
[Date "2022.11.20"]
[Round "6.8"]
[White "Hebert, Jean"]
[Black "Petran, Peter"]
[Result "1-0"]
[ECO "E90"]
[WhiteElo "2333"]
[BlackElo "2213"]
[Annotator "TA"]
[PlyCount "109"]
[EventDate "2022.11.14"]
[EventType "swiss"]
[EventCountry "ITA"]
[SourceTitle "playchess.com"]
[Source "ChessBase"]
[SourceQuality "1"]
[TimeControl "40/5400+30:1800+30"]

{[%evp 22,109,68,66,85,79,103,105,97,52,85,70,104,106,90,82,117,96,100,108,170,168,168,164,206,235,218,181,179,178,288,169,195,141,284,286,289,270,287,287,266,270,270,269,288,277,274,184,184,187,187,187,177,188,183,177,183,183,171,141,167,139,471,436,1047,957,912,988,1074,987,1470,1463,1463,1418,5065,1115,1018,367,9638,6839,12837,7925,29975,29976,29980,29981,29984,29982,29982,12849]} 1. d4 {[%emt 0:00:50]} g6 {[%emt 0:00:22]} 2. e4 {[%emt 0:00:57]} Bg7 {[%emt 0:00:06]} 3. c4 {[%emt 0:00:59]} d6 {[%emt 0:00:20]} 4. Nc3 {[%emt 0:03:19]} Nf6 {[%emt 0:00:07]} 5. Nf3 {[%emt 0:00:35]} O-O {[%emt 0:00:08][%cal Bh8f8,Bf8e8,Be8e7][%mdl 32]} 6. h3 {[%emt 0:01:20]} c5 {[%emt 0:03:50]} 7. d5 {[%emt 0:00:12]} e6 {[%emt 0:01:11]} 8. Bd3 {[%emt 0:00:25]} exd5 {[%emt 0:00:20]} 9. exd5 {[%emt 0:00:10]} Re8+ {[%emt 0:01:50]} 10. Be3 {[%emt 0:00:11]} a6 {[%emt 0:02:43]} 11. O-O {[%emt 0:01:11]} b5 {[%emt 0:00:17]} 12. cxb5 {[%emt 0:00:46]} axb5 {[%emt 0:00:07] E90: King's Indian: Classical: Early deviations and 6 h3.} 13. Bxb5 {[%emt 0:00:46] [#]} Re7 $146 {[%emt 0:07:20]} ({Predecessor:} 13... Bd7 14. Bc4 Ne4 15. Nxe4 Rxe4 16. Bd3 Rb4 17. b3 Bxa1 18. Qxa1 Rxb3 19. Bg5 Qf8 20. axb3 Rxa1 21. Rxa1 {0-1 (34) Ashiev,E (2202)-Kaufman,R (2255) Chess.com INT 2020}) 14. Re1 {[%emt 0:03:12]} Ba6 {[%emt 0:02:23] White is better.} 15. Bxa6 {[%emt 0:07:14]} Rxa6 {[%emt 0:01:11]} 16. Qc2 {[%emt 0:02:31]} Nbd7 {[%emt 0:05:30]} 17. Bf4 {[%emt 0:03:00]} Rxe1+ {[%emt 0:02:56]} 18. Rxe1 {[%emt 0:00:11]} Qb8 {[%emt 0:14:02]} 19. b3 {[%emt 0:19:07] White is more active.} Nh5 {[%emt 0:03:40]} 20. Bd2 {[%emt 0:02:47]} Ne5 {[%emt 0:09:21]} (20... Nhf6 $16) 21. Nxe5 $18 {[%emt 0:02:42]} Bxe5 {[%emt 0:00:07]} 22. a4 {[%emt 0:02:25]} Qb7 {[%emt 0:19:25]} 23. Nb5 {[%emt 0:05:03]} Ra8 {[%emt 0:05:09]} 24. Bc3 {[%emt 0:11:42]} Bxc3 {[%emt 0:03:16]} (24... Qxd5 $2 25. Bxe5 Rd8 26. Bh2 $18) 25. Qxc3 {[%emt 0:01:08]} (25. Nxc3 Rd8 $16) 25... Rd8 {[%emt 0:00:24]} (25... Qd7 $142 26. Qe3 Nf6) 26. Qf3 {[%emt 0:07:02]} (26. g4 $142 Ng7 27. Qf6) 26... Qd7 {[%emt 0:03:50]} 27. Re4 {[%emt 0:09:33]} ({Better is} 27. Qg4 $18) 27... Qf5 {[%emt 0:01:35]} (27... Qb7 $16 28. g4 Ng7) 28. Qxf5 {[%emt 0:04:42]} gxf5 {[%emt 0:00:06][%mdl 4096] Endgame KRN-KRN} 29. Rc4 {[%emt 0:01:26]} Nf6 {[%emt 0:00:27]} 30. a5 {[%emt 0:00:13][%cal Ba4a5,Ba5a6,Ba6a7][%mdl 32]} Nxd5 {[%emt 0:00:47]} 31. a6 {[%emt 0:01:06]} Nb6 {[%emt 0:03:23]} 32. Rf4 {[%emt 0:02:02]} Kf8 {[%emt 0:00:40]} 33. Rxf5 {[%emt 0:00:56]} Ke7 {[%emt 0:00:37]} 34. Kf1 {[%emt 0:00:13]} Ra8 {[%emt 0:02:26]} 35. a7 {[%emt 0:02:34]} Nc8 {[%emt 0:00:29] [#]} 36. Rf4 $1 {[%emt 0:00:48] Strongly threatening Ra4.} (36. Rd5 Kd7 $11) 36... Kd7 {[%emt 0:05:02]} 37. Rxf7+ {[%emt 0:00:39]} Kc6 {[%emt 0:00:05]} 38. Nc3 {[%emt 0:00:33]} ({Don't take} 38. Rxh7 $6 Kxb5 39. Rh8 Kb4 $11) 38... Rxa7 {[%emt 0:00:14]} 39. Rxa7 {[%emt 0:00:15]} Nxa7 {[%emt 0:00:05] KN-KN} 40. g4 {[%emt 0:00:33][%cal Bg2g4,Bg4g5][%mdl 32]} d5 {[%emt 0:00:15]} 41. Ke2 {[%emt 0:06:50]} d4 $2 {[%emt 0:00:40][%mdl 8192] This move loses the game for Black.} (41... Kd6 $16 {is more resistant.}) 42. Ne4 {[%emt 0:00:23]} Kb5 {[%emt 0:00:07]} (42... h6 $142 43. h4 Kd5) 43. g5 {[%emt 0:00:30]} Nc6 {[%emt 0:00:26]} 44. h4 {[%emt 0:00:47][%cal Bh3h4,Bh4h5][%mdl 32]} Kb4 {[%emt 0:07:07]} 45. h5 {[%emt 0:01:49]} Kxb3 {[%emt 0:04:57]} 46. Nxc5+ {[%emt 0:00:59]} Kc4 {[%emt 0:00:16]} 47. Nd3 {[%emt 0:02:02] [#] And now g6 would win.} Kd5 {[%emt 0:00:36]} 48. Kf3 {[%emt 0:04:10]} (48. g6 $142 hxg6 49. h6) 48... Nd8 {[%emt 0:02:14]} 49. Kg4 $2 {[%emt 0:04:36]} (49. g6 hxg6 50. Nf4+ (50. hxg6 Ke6 $16) 50... Ke5 $14) (49. Kf4 Ke6 50. Ne5 (50. g6 hxg6 51. h6 Kf6 $11)) 49... Ke6 $2 {[%emt 0:01:01]} (49... Ke4 50. Nc5+ Kd5) 50. f4 {[%emt 0:01:36]} ({Weaker is} 50. g6 hxg6 51. hxg6 Kf6 $11) 50... Kf7 {[%emt 0:03:11]} 51. Kf5 {[%emt 0:02:05] Threatening mate with h6.} Nc6 {[%emt 0:00:11]} 52. Ke4 {[%emt 0:00:46] White mates.} Kg7 {[%emt 0:00:19]} 53. Ne5 {[%emt 0:01:36]} Ne7 {[%emt 0:00:22]} 54. h6+ {[%emt 0:01:47]} Kg8 {[%emt 0:00:33]} 55. Kxd4 {[%emt 0:01:32] Weighted Error Value: White=0.29 (precise) /Black=0.53} (55. f5 $142 d3 56. f6 Ng6 57. f7+ Kf8 58. Nxg6+ Kxf7 59. Ne5+ Kg8 60. Nxd3) 1-0

[Event "FIDE WSCC 65 2022"]
[Site "Assisi"]
[Date "2022.11.20"]
[Round "6.9"]
[White "Jurek, Josef"]
[Black "Bogdanov, Valentin"]
[Result "1/2-1/2"]
[ECO "D76"]
[WhiteElo "2211"]
[BlackElo "2323"]
[Annotator "TA"]
[PlyCount "41"]
[EventDate "2022.11.14"]
[EventType "swiss"]
[EventCountry "ITA"]
[SourceTitle "playchess.com"]
[Source "ChessBase"]
[SourceQuality "1"]
[TimeControl "40/5400+30:1800+30"]

{[%evp 18,41,40,29,49,37,32,31,31,56,25,29,43,36,41,10,11,16,72,27,19,28,9,20,33,8]} 1. Nf3 {[%emt 0:00:13]} Nf6 {[%emt 0:00:14]} 2. c4 {[%emt 0:00:19]} g6 {[%emt 0:00:10]} 3. g3 {[%emt 0:00:32]} Bg7 {[%emt 0:00:16]} 4. Bg2 {[%emt 0:00:27]} O-O {[%emt 0:00:42]} 5. d4 {[%emt 0:01:03][%cal Bd2d4,Bd4d5][%mdl 32]} d5 {[%emt 0:00:25]} 6. cxd5 {[%emt 0:00:17]} Nxd5 {[%emt 0:00:04]} 7. O-O {[%emt 0:00:28]} Nb6 {[%emt 0:01:19]} 8. Nc3 {[%emt 0:00:31]} Nc6 {[%emt 0:00:32]} 9. e3 {[%emt 0:00:45][%cal Be2e3,Be3e4][%mdl 32]} a5 {[%emt 0:01:51]} 10. d5 {[%emt 0:00:50] seems to push 10.b3 aside.} Nb4 {[%emt 0:00:21][%cal Rb4d5] D76: Fianchetto Grünfeld: Main Line with 7...Nb6.} 11. e4 {[%emt 0:00:21]} f5 {[%emt 0:00:30]} 12. Ng5 {[%emt 0:00:34]} h6 {[%emt 0:00:45]} 13. a3 {[%emt 0:01:11]} (13. Ne6 {is more complex.} Bxe6 14. dxe6 Qxd1 15. Rxd1 c6 16. exf5 gxf5 17. Bf4) 13... hxg5 {[%emt 0:00:46]} 14. axb4 {[%emt 0:00:21]} axb4 {[%emt 0:00:23]} 15. Rxa8 {[%emt 0:00:15]} Nxa8 {[%emt 0:00:58]} 16. Ne2 {[%emt 0:04:00] [#]} fxe4 $146 {[%emt 0:09:02]} ({Predecessor:} 16... e6 17. h4 gxh4 18. Nf4 hxg3 19. Nxg6 gxf2+ 20. Rxf2 Rf7 21. e5 Nb6 22. Qh5 Nxd5 {½-½ (39) Zhekov,Z-Angelov,R (2245) ICCF email 2016}) 17. Bxg5 {[%emt 0:08:39]} Nb6 {[%emt 0:08:41]} (17... Qd6 $1 $11) 18. Nf4 {[%emt 0:04:42]} (18. Bxe4 $5 {[%cal Re2f4]} Bf5 19. Bg2 $14) 18... Qd6 {[%emt 0:18:30]} (18... Bxb2 $2 19. Bxe4 (19. Nxg6 Rf7 $18) 19... Rxf4 20. Bxf4 $18) 19. h4 {[%emt 0:12:34]} ({Much weaker is} 19. Bxe4 Qe5 20. Nxg6 Qxg5 $15) 19... e3 {[%emt 0:08:06]} 20. fxe3 {[%emt 0:06:43]} Nc4 {[%emt 0:01:09]} 21. Qe2 {[%emt 0:56:15] Weighted Error Value: White=0.09 (flawless) /Black=0.05 (flawless)} 1/2-1/2

[Event "FIDE WSCC 65 2022"]
[Site "Assisi"]
[Date "2022.11.20"]
[Round "6.10"]
[White "Roos, Louis"]
[Black "Mojzis, Jaroslav"]
[Result "0-1"]
[ECO "E12"]
[WhiteElo "2293"]
[BlackElo "2094"]
[Annotator "TA"]
[PlyCount "72"]
[EventDate "2022.11.14"]
[EventType "swiss"]
[EventCountry "ITA"]
[SourceTitle "playchess.com"]
[Source "ChessBase"]
[SourceQuality "1"]
[TimeControl "40/5400+30:1800+30"]

{[%evp 10,72,24,12,29,31,40,33,27,28,46,27,40,18,30,14,15,6,20,7,8,2,33,40,28,15,24,-24,12,-31,-25,-46,-19,-18,-14,-26,-20,-25,0,0,0,-49,-10,-55,-21,-55,-47,-112,-67,-135,-22,-728,-698,-725,-718,-714,-709,-698,-660,-29990,-823,-1135,-1113,-1590,-2662]} 1. Nf3 {[%emt 0:00:09]} Nf6 {[%emt 0:00:10]} 2. c4 {[%emt 0:01:57]} b6 {[%emt 0:04:46]} 3. Nc3 {[%emt 0:09:13]} Bb7 {[%emt 0:00:22]} 4. e3 {[%emt 0:02:19]} e6 {[%emt 0:00:47]} 5. a3 {[%emt 0:02:52]} c5 {[%emt 0:01:28]} 6. d4 {[%emt 0:06:28]} Ne4 {[%emt 0:05:19] E12: Queen's Indian: Unusual White 4th moves, 4 a3, 4 Nc3 Bb7 5 a3 and 4 Nc3 Bb7 .} 7. Nxe4 {[%emt 0:06:24]} Bxe4 {[%emt 0:00:18]} 8. Bd3 {[%emt 0:00:21]} Bxd3 {[%emt 0:07:00] White is slightly better.} 9. Qxd3 {[%emt 0:00:09]} cxd4 {[%emt 0:06:20]} 10. Nxd4 {[%emt 0:07:33] [#]} Be7 $146 {[%emt 0:08:18]} ({Predecessor:} 10... Nc6 11. O-O Be7 12. Nf3 O-O 13. e4 Bf6 14. Ra2 Qc7 15. b3 Rfd8 16. Rd1 Rac8 {1-0 (56) Browne,W (2585)-Kavalek,L (2540) Manila 1976}) 11. Bd2 {[%emt 0:07:09]} O-O {[%emt 0:02:48]} 12. O-O {[%emt 0:05:45]} Nc6 {[%emt 0:06:49]} 13. Nf3 {[%emt 0:06:44]} Bf6 {[%emt 0:02:42]} 14. Rab1 {[%emt 0:02:25]} Qc7 {[%emt 0:01:16]} 15. e4 {[%emt 0:06:57]} Ne5 {[%emt 0:02:34]} 16. Nxe5 {[%emt 0:00:42]} Bxe5 {[%emt 0:00:21]} 17. f4 {[%emt 0:02:49]} Bd6 {[%emt 0:04:38]} 18. e5 {[%emt 0:14:10]} (18. h3 {is more appropriate.}) 18... Be7 {[%emt 0:00:30]} 19. Rbc1 {[%emt 0:04:17]} d6 {[%emt 0:01:48]} 20. Qg3 {[%emt 0:01:24]} g6 {[%emt 0:07:43]} 21. exd6 {[%emt 0:03:51]} Bxd6 {[%emt 0:01:09]} 22. Bc3 {[%emt 0:00:12]} Rfd8 {[%emt 0:02:32]} ({But not} 22... Qxc4 {[#]} 23. Bg7 $1 Bc5+ 24. Kh1 $11) 23. b4 {[%emt 0:00:38] Inhibits Bc5+.} Bf8 {[%emt 0:02:19][%cal Oa7a5]} (23... a5 {looks sharper.} 24. Kh1 axb4 25. axb4 Ra4) 24. Be5 {[%emt 0:02:59]} Qc6 {[%emt 0:01:09]} 25. Qc3 {[%emt 0:00:46]} (25. Bb2 $11 Rd2 26. Rf2) 25... Rac8 {[%emt 0:02:19][%cal Oa7a5]} 26. h4 {[%emt 0:00:28][%cal Oh4h5]} h5 {[%emt 0:03:29]} (26... Qe4 $5 {[%cal Rd8d3]}) 27. Rfe1 {[%emt 0:00:59]} Rd7 {[%emt 0:01:51][%cal Oa7a5]} (27... a5 $5) 28. Bf6 {[%emt 0:01:21] Prevents a5.} (28. Red1 $15) 28... Qc7 {[%emt 0:03:24]} (28... a5 {seems wilder.} 29. Kh2 axb4 30. axb4 Qd6) 29. Re5 {[%emt 0:03:59]} (29. Rf1 $15) 29... Qd6 {[%emt 0:07:24]} ({Black should play} 29... Bd6 $17 30. Re4 Bxf4) 30. Rxh5 $2 {[%emt 0:00:00][%mdl 8192] Now White is beyond hope.} gxh5 $19 {[%emt 0:01:45]} 31. Qg3+ {[%emt 0:00:00]} Kh7 {[%emt 0:00:07]} 32. Qg5 {[%emt 0:00:19]} Qd3 {[%emt 0:00:50]} 33. Qxh5+ {[%emt 0:00:49]} Bh6 {[%emt 0:00:10] [#] ( -> ...Qe3+)} 34. Ba1 {[%emt 0:00:40]} Qg6 {[%emt 0:00:57]} (34... Qe3+ $142 35. Kh2 Qxf4+ 36. g3 Rd2+ 37. Kh3 Qf2 38. Bf6 Qg2+ 39. Kg4 Rg8+ 40. Qg5 Rd4+ 41. Bxd4 f5+ 42. Kh5 Rxg5+ 43. hxg5 Qh3#) 35. Qf3 {[%emt 0:00:16]} Rd3 {[%emt 0:01:44]} 36. h5 {[%emt 0:00:40]} Qf5 {[%emt 0:01:07] Weighted Error Value: White=0.95/Black=0.34} ({Stronger than} 36... Rxf3 37. hxg6+ Kxg6 38. gxf3 $15) 0-1